bitfinex-derivatives/quotes_ETHF0:USTF0_20210405
["timestamp","ask_amount","ask_price","bid_price","bid_amount"]
[1617646606949,11.0,2101.5,2101.4,5.89]
[1617646607554,11.0,2101.5,2101.0,5.88]
[1617646607751,11.0,2101.5,2101.4,5.74]
[1617646608151,11.02780882,2101.5,2101.0,5.9]
[1617646608355,11.02780882,2101.5,2101.4,5.83]
[1617646608756,11.02780882,2101.5,2101.0,5.81]
[1617646608950,11.02780882,2101.5,2101.4,5.76]
[1617646609355,11.02780882,2101.5,2101.1,5.78]
[1617646609553,11.0,2101.5,2101.4,5.93]
[1617646609754,13.90695,2101.5,2101.4,8.83695]
[1617646609954,13.90695,2101.5,2101.4,2.90695]
[1617646610154,13.90695,2101.5,2101.4,8.82695]
[1617646612654,13.90695,2101.5,2101.4,5.92]
[1617646613255,13.90695,2101.5,2101.0,5.99]
[1617646613458,13.90695,2101.5,2101.4,5.85]
[1617646613858,13.90695,2101.5,2101.2,2.90695]
[1617646614058,13.90695,2101.5,2101.4,5.75]
[1617646614458,13.90695,2101.5,2101.3,5.98]
[1617646614959,13.9347332,2101.5,2101.0,5.8]
[1617646615261,13.90695,2101.5,2101.4,5.73]
[1617646615660,13.90695,2101.5,2101.0,5.84]
[1617646615860,13.90695,2101.5,2101.4,5.72]
[1617646616261,13.90695,2101.5,2101.0,5.85]
[1617646616461,13.93475019,2101.5,2101.4,5.94]
[1617646616860,13.93475019,2101.5,2101.0,5.85]
[1617646617261,13.93475019,2101.5,2101.4,5.84]
[1617646617461,13.93475019,2101.5,2100.9,71.09765]
[1617646617662,13.93475019,2101.5,2101.0,5.87]
[1617646617862,11.02780019,2101.5,2101.4,5.95]
[1617646618063,11.02780019,2101.5,2101.2,2.90695]
[1617646618262,11.02780019,2101.5,2101.3,5.88]
[1617646618462,11.02780019,2101.5,2101.2,2.90695]
[1617646618463,11.02780019,2101.5,2101.4,5.94]
[1617646618663,0.027796,2101.4,2101.2,2.90695]
[1617646618865,0.027796,2101.4,2101.3,5.88]
[1617646619063,11.05559201,2101.5,2101.2,2.90695]
[1617646619363,11.05559201,2101.5,2101.3,5.85]
[1617646619563,0.02779738,2101.4,2101.3,5.85]
[1617646619764,2.93474738,2101.4,2101.3,5.85]
[1617646622171,2.90695,2101.4,2101.3,5.85]
[1617646626275,2.93474247,2101.4,2101.3,5.85]
[1617646626471,2.93474247,2101.4,2101.0,5.77]
[1617646626674,55.6436,2101.3,2100.0,0.49]
[1617646627073,0.02778537,2101.2,2101.1,5.82]
[1617646627272,0.02778537,2101.2,2100.0,5.74]
[1617646627473,55.92136471,2101.3,2100.0,5.74]
[1617646627673,55.92136471,2101.3,2101.1,5.89]
[1617646627872,55.92136471,2101.3,2100.0,8.78695]
[1617646628274,55.92136471,2101.3,2101.2,5.84]
[1617646628474,0.02778541,2101.0,2100.1,5.77]
[1617646628677,2.26528541,2101.0,2100.1,5.77]
[1617646628877,2.2375,2101.0,2100.0,2.90695]
[1617646629074,2.2375,2101.0,2100.2,5.84]
[1617646629276,2.26529562,2101.0,2100.2,5.84]
[1617646629478,2.26529562,2101.0,2100.1,5.97]
[1617646629678,2.26529562,2101.0,2100.0,2.90695]
[1617646629878,2.26529562,2101.0,2100.5,2.90695]
[1617646630278,2.26529562,2101.0,2100.6,1.65]
[1617646630881,0.02778341,2100.8,2100.1,6.0]
[1617646631280,0.02779536,2100.7,2099.9,67.5466]
[1617646631682,0.02779207,2100.6,2100.2,5.91]
[1617646631882,2.90695,2100.3,2100.2,2.90695]
[1617646632281,2.90695,2100.3,2100.2,8.79695]
[1617646636984,2.90695,2100.3,2100.2,5.89]
[1617646637185,2.90695,2100.3,2099.2,5.75]
[1617646637586,2.90695,2100.3,2100.2,5.88]
[1617646637786,63.7059,2100.2,2099.2,5.81]
[1617646638186,63.7059,2100.2,2098.2,61.3429]
[1617646638388,63.73364744,2100.2,2099.3,5.71]
[1617646638787,0.02774774,2100.1,2098.3,5.8]
[1617646638987,0.02774774,2100.1,2099.4,5.99]
[1617646639188,0.02774163,2100.0,2099.4,5.99]
[1617646639388,0.02774163,2100.0,2098.3,5.93]
[1617646639589,0.02774163,2100.0,2099.5,4.85]
[1617646639791,0.02774671,2100.1,2099.5,4.85]
[1617646639990,2.90695,2099.6,2099.1,2.90695]
[1617646640189,2.90695,2099.6,2099.4,2.98]
[1617646640591,2.90695,2099.6,2099.2,0.15]
[1617646640791,2.90695,2099.6,2099.5,5.74]
[1617646641191,2.90695,2099.6,2099.2,5.79]
[1617646641392,2.90695,2099.6,2099.5,5.79]
[1617646641793,2.90695,2099.6,2099.2,5.96]
[1617646641994,2.90695,2099.6,2099.3,2.90695]
[1617646642193,2.90695,2099.6,2099.4,5.97]
[1617646644598,2.90695,2099.6,2098.6,5.73]
[1617646644798,4.89845,2099.6,2098.6,5.73]
[1617646644998,4.89845,2099.6,2099.5,5.97]
[1617646645200,4.89845,2099.6,2098.3,5.83]
[1617646645599,4.89845,2099.6,2099.5,5.96]
[1617646645798,4.89845,2099.6,2098.3,5.95]
[1617646645998,1.9915,2099.6,2098.5,2.90695]
[1617646646399,1.9915,2099.6,2098.6,5.89]
[1617646646801,1.9915,2099.6,2098.3,5.98]
[1617646647202,1.9915,2099.6,2098.7,5.76]
[1617646647603,1.9915,2099.6,2098.3,5.94]
[1617646648003,1.9915,2099.6,2098.7,2.90695]
[1617646648203,1.9915,2099.6,2098.8,5.74]
[1617646648503,1.9915,2099.6,2098.3,5.97]
[1617646648805,1.9915,2099.6,2098.9,5.88]
[1617646649206,0.02773292,2099.8,2098.8,2.6107]
[1617646649406,0.02773292,2099.8,2099.0,5.94]
[1617646649606,2.0277085,2100.1,2099.0,5.94]
[1617646649806,2.0277085,2100.1,2098.9,5.86]
[1617646650007,2.0277085,2100.1,2099.2,2.90695]
[1617646650410,2.0277085,2100.1,2099.3,5.78]
[1617646650608,0.0277085,2100.1,2099.3,8.3213]
[1617646650808,63.73360991,2100.2,2099.3,8.3213]
[1617646652010,63.73360991,2100.2,2099.6,2.90695]
[1617646652411,63.73360991,2100.2,2099.7,5.98]
[1617646653910,2.90695,2099.8,2099.7,5.98]
[1617646658016,5.23785,2099.8,2099.7,5.98]
[1617646658416,5.23785,2099.8,2099.4,5.91]
[1617646660021,2.90695,2099.5,2099.4,5.91]
[1617646662022,2.90695,2099.5,2098.7,2.90695]
[1617646662222,56.467,2099.2,2098.7,2.90695]
[1617646662421,59.2701,2099.2,2098.7,2.90695]
[1617646662621,59.2701,2099.2,2098.8,0.23]
[1617646664126,2.90695,2098.9,2098.8,0.23]
[1617646664523,2.90695,2098.9,2098.5,5.84]
[1617646664724,2.90695,2098.9,2098.8,5.74]
[1617646665124,2.90695,2098.9,2098.5,5.79]
[1617646665324,2.90695,2098.9,2098.8,6.0]
[1617646665728,2.90695,2098.9,2098.5,5.84]
[1617646665928,2.90695,2098.9,2098.8,5.81]
[1617646666128,59.2701,2099.2,2098.8,5.81]
[1617646666327,59.2701,2099.2,2098.5,5.96]
[1617646666628,59.2701,2099.2,2098.4,2.90695]
[1617646666629,59.2701,2099.2,2098.9,5.77]
[1617646666928,59.2701,2099.2,2098.5,6.0]
[1617646667230,59.2701,2099.2,2099.0,5.87]
[1617646667631,59.2701,2099.2,2098.5,5.8]
[1617646667829,59.2701,2099.2,2099.1,5.81]
[1617646668029,62.17705,2099.2,2099.1,5.81]
[1617646668232,62.17705,2099.2,2098.5,5.85]
[1617646668431,62.17705,2099.2,2099.1,5.83]
[1617646668834,62.17705,2099.2,2098.5,5.9]
[1617646669032,62.17705,2099.2,2099.1,5.95]
[1617646669431,62.17705,2099.2,2098.5,5.9]
[1617646669633,62.17705,2099.2,2099.1,5.82]
[1617646669930,62.17705,2099.2,2098.4,2.90695]
[1617646670131,62.17705,2099.2,2098.5,5.75]
[1617646670331,62.17705,2099.2,2099.1,5.71]
[1617646670733,62.17705,2099.2,2098.5,5.73]
[1617646670933,62.17705,2099.2,2099.1,5.88]
[1617646671334,62.17705,2099.2,2098.5,5.87]
[1617646672133,2.90695,2098.6,2098.5,5.87]
[1617646674535,56.467,2099.2,2098.5,5.87]
[1617646674736,2.0,2100.2,2098.5,5.87]
[1617646674937,73.6715,2100.1,2098.7,73.8859]
[1617646675536,73.6715,2100.1,2098.8,5.87]
[1617646676137,73.6715,2100.1,2099.1,2.90695]
[1617646676337,73.6715,2100.1,2099.2,5.73]
[1617646678141,2.90695,2099.3,2099.2,5.73]
[1617646678942,2.90695,2099.3,2098.8,5.87]
[1617646679144,2.90695,2099.3,2099.2,5.85]
[1617646679542,2.90695,2099.3,2098.8,5.72]
[1617646679742,2.90695,2099.3,2099.2,5.86]
[1617646680041,2.90695,2099.3,2098.9,2.90695]
[1617646680344,2.90695,2099.3,2099.2,5.93]
[1617646680742,2.90695,2099.3,2099.0,5.82]
[1617646680942,2.90695,2099.3,2099.2,5.96]
[1617646681143,66.16675,2099.3,2099.2,5.96]
[1617646681342,66.16675,2099.3,2099.0,5.86]
[1617646681742,66.16675,2099.3,2099.2,5.8]
[1617646681942,2.90695,2099.3,2099.0,5.89]
[1617646682143,2.90695,2099.3,2099.1,67.4416]
[1617646682344,2.90695,2099.3,2099.2,5.8]
[1617646682543,2.90695,2099.3,2099.1,69.6947]
[1617646682945,2.90695,2099.3,2099.2,5.98]
[1617646683145,62.4239,2100.1,2099.2,5.98]
[1617646684148,2.90695,2099.6,2099.5,2.90695]
[1617646684545,2.90695,2099.6,2099.5,8.80695]
[1617646689649,62.4239,2100.1,2099.5,8.80695]
[1617646690249,62.4239,2100.1,2099.8,2.90695]
[1617646690650,62.4239,2100.1,2099.9,5.92]
[1617646692153,2.90695,2100.0,2099.9,5.92]
[1617646694556,67.7806,2100.4,2099.9,5.92]
[1617646694756,67.7806,2100.4,2099.9,8.6474]
[1617646696160,67.7806,2100.4,2100.3,2.90695]
[1617646696559,67.7806,2100.4,2100.3,8.72695]
[1617646697759,2.90695,2100.5,2100.3,8.72695]
[1617646702872,0.02774144,2100.7,2100.3,8.72695]
[1617646703073,0.02774613,2100.8,2100.3,8.72695]
[1617646703670,0.02774613,2100.8,2100.4,2.0]
[1617646703873,0.02774613,2100.8,2100.4,4.4094]
[1617646704072,67.88055876,2100.9,2100.5,5.74]
[1617646704272,0.02775876,2100.9,2100.5,5.74]
[1617646704474,0.02775876,2100.9,2100.8,2.90695]
[1617646704676,0.02776468,2101.0,2100.8,8.74695]
[1617646704874,0.02776468,2101.0,2100.9,61.5879]
[1617646705074,0.02778903,2101.3,2100.9,64.2028]
[1617646705475,0.02778903,2101.3,2101.0,5.87]
[1617646706076,0.0277855,2101.4,2101.0,5.87]
[1617646706277,0.02784363,2101.2,2101.0,5.87]
[1617646706685,0.02784065,2101.1,2101.0,5.87]
[1617646707079,0.05568727,2101.3,2101.0,5.87]
[1617646707080,0.02784301,2101.2,2101.0,5.87]
[1617646707480,0.02784678,2101.3,2101.0,5.87]
[1617646708483,0.02784678,2101.3,2101.2,2.90695]
[1617646708880,0.02784678,2101.3,2101.2,8.70695]
[1617646710380,2.96262428,2101.3,2101.2,8.70695]
[1617646710679,2.90695,2101.3,2101.2,8.70695]
[1617646711279,88.98867142,2101.5,2101.2,8.70695]
[1617646711481,0.05570869,2101.3,2101.2,8.70695]
[1617646711681,0.0278697,2101.3,2101.2,8.70695]
[1617646712083,0.02787842,2101.4,2101.2,8.70695]
[1617646712882,88.7103,2101.5,2101.2,8.70695]
[1617646716792,11.0,2101.5,2101.2,8.70695]
[1617646716997,11.0,2101.5,2101.3,73.2955]
[1617646717395,11.0,2101.5,2101.4,5.92]
[1617646727605,11.0,2101.5,2101.3,5.89]
[1617646728008,11.0,2101.5,2101.4,5.82]
[1617646728205,11.0,2101.5,2101.3,5.83]
[1617646728607,11.0,2101.5,2101.4,5.74]
[1617646728807,11.0,2101.5,2101.3,5.9]
[1617646729209,11.0,2101.5,2101.4,5.79]
[1617646729409,11.0,2101.5,2101.3,5.97]
[1617646729808,11.0,2101.5,2101.4,5.74]
[1617646730009,11.0,2101.5,2101.3,5.87]
[1617646730410,11.0,2101.5,2101.4,5.77]
[1617646730810,11.0,2101.5,2101.3,5.78]
[1617646731010,11.0,2101.5,2101.4,5.73]
[1617646731410,11.0,2101.5,2101.3,5.79]
[1617646731610,11.0,2101.5,2101.4,5.87]
[1617646732010,11.0,2101.5,2100.3,2.0]
[1617646732011,59.2128,2101.4,2100.3,2.0]
[1617646732211,59.2128,2101.4,2100.5,5.85]
[1617646732410,11.0,2101.5,2100.4,5.78]
[1617646732610,11.02768051,2101.5,2100.1,4.46]
[1617646732810,72.1024,2101.2,2100.6,5.76]
[1617646733011,11.02768051,2101.5,2100.5,5.74]
[1617646733212,59.3703,2100.6,2100.3,2.98]
[1617646733411,61.9625,2100.6,2100.3,2.98]
[1617646733610,61.9625,2100.6,2100.5,5.82]
[1617646733811,61.9625,2100.6,2100.3,5.88]
[1617646734210,61.9625,2100.6,2100.2,2.90695]
[1617646734211,61.9625,2100.6,2100.5,5.82]
[1617646734411,61.9625,2100.6,2100.3,5.81]
[1617646734811,2.5922,2100.6,2100.5,5.82]
[1617646735013,0.02766535,2101.3,2100.3,5.79]
[1617646735412,73.41273069,2101.4,2100.6,5.85]
[1617646735413,73.3574,2101.4,2100.6,5.85]
[1617646735815,73.3574,2101.4,2100.3,5.92]
[1617646736012,73.3574,2101.4,2100.7,5.73]
[1617646736413,73.3574,2101.4,2100.3,5.72]
[1617646736614,73.3574,2101.4,2100.8,5.91]
[1617646736816,2.90695,2100.9,2100.8,5.91]
[1617646737014,2.90695,2100.9,2100.7,2.90695]
[1617646737213,2.90695,2100.9,2100.8,1.39]
[1617646750034,2.90695,2100.9,2100.8,2.3362]
[1617646750236,2.90695,2100.9,2100.8,1.39]
[1617646769452,2.90695,2100.9,2099.7,5.89]
[1617646769652,68.3649,2100.1,2100.0,2.90695]
[1617646769852,70.3898,2100.1,2100.0,2.90695]
[1617646770053,70.3898,2100.1,2100.0,3.49695]
[1617646771656,73.29675,2100.1,2100.0,3.49695]
[1617646773154,4.93185,2100.1,2100.0,3.49695]
[1617646774354,1.9117,2100.6,2100.0,3.49695]
[1617646775655,1.9117,2100.6,2100.3,2.90695]
[1617646776254,1.9117,2100.6,2100.4,5.91]
[1617646776956,1.93950112,2100.6,2099.7,5.77]
[1617646777355,1.93950112,2100.6,2100.5,5.75]
[1617646777558,1.93950112,2100.6,2099.8,5.86]
[1617646777559,1.9117,2100.6,2099.8,5.86]
[1617646777756,2.90695,2099.9,2099.8,5.86]
[1617646777957,4.98535,2099.9,2099.6,5.98]
[1617646778157,58.3534,2099.7,2099.5,5.31]
[1617646778357,4.98535,2099.9,2099.7,5.72]
[1617646778758,4.98535,2099.9,2099.5,5.76]
[1617646778957,2.90695,2099.9,2099.8,5.82]
[1617646779357,2.90695,2099.9,2099.4,2.90695]
[1617646779358,2.90695,2099.9,2099.5,5.88]
[1617646779758,2.90695,2099.9,2099.8,8.68695]
[1617646779957,2.90695,2099.9,2099.8,2.90695]
[1617646780160,0.02778722,2100.5,2099.8,2.90695]
[1617646780358,0.02779852,2100.4,2099.8,8.62695]
[1617646781662,0.02779852,2100.4,2100.3,2.90695]
[1617646782061,0.02781009,2100.5,2100.3,2.90695]
[1617646782261,0.02781009,2100.5,2100.3,8.88695]
[1617646783862,2.90695,2100.4,2100.3,8.88695]
[1617646785264,2.9347578,2100.4,2100.3,8.88695]
[1617646790167,2.90695,2100.4,2100.3,8.88695]
[1617646790967,2.93475983,2100.4,2100.3,5.98]
[1617646791367,2.93475983,2100.4,2100.0,5.8]
[1617646791569,2.96254866,2100.4,2100.0,5.8]
[1617646791768,2.96254866,2100.4,2100.3,5.83]
[1617646791969,2.96254866,2100.4,2100.0,8.81695]
[1617646792269,2.96254866,2100.4,2100.3,5.91]
[1617646792470,2.90695,2100.4,2100.3,5.91]
[1617646792669,2.96254038,2100.4,2100.1,5.98]
[1617646792871,2.96254038,2100.4,2100.3,5.74]
[1617646793272,2.96254038,2100.4,2100.1,5.73]
[1617646793972,0.02778302,2100.2,2100.1,5.73]
[1617646794473,0.02778354,2100.3,2100.1,5.73]
[1617646794673,57.6405,2100.2,2100.1,5.73]
[1617646799983,57.66827659,2100.2,2100.1,5.73]
[1617646801887,57.69603082,2100.2,2100.1,5.73]
[1617646802085,57.69603082,2100.2,2099.4,5.9]
[1617646802287,3.18454697,2100.4,2100.1,5.84]
[1617646802486,2.0,2100.3,2100.1,5.84]
[1617646802686,0.02776861,2099.7,2099.5,6.0]
[1617646802886,1.83206861,2099.7,2098.3,76.7952]
[1617646803087,0.02775871,2099.6,2098.3,2.0]
[1617646803287,0.02775871,2099.6,2099.1,5.95]
[1617646803487,59.3104,2099.5,2098.4,61.2877]
[1617646803886,59.3104,2099.5,2099.2,5.88]
[1617646804088,2.90695,2099.3,2098.5,5.95]
[1617646804487,76.2704,2098.8,2098.1,13.7259]
[1617646804687,78.4399,2098.8,2098.6,5.43]
[1617646805087,78.4399,2098.8,2098.1,3.13]
[1617646805088,2.1695,2098.8,2098.1,3.13]
[1617646805289,2.1695,2098.8,2098.5,5.95]
[1617646805488,2.1695,2098.8,2098.7,5.8]
[1617646805687,2.1695,2098.8,2098.3,79.6059]
[1617646805888,2.1695,2098.8,2098.6,5.72]
[1617646806088,2.1695,2098.8,2098.7,8.55695]
[1617646806288,2.1695,2098.8,2098.7,2.90695]
[1617646806488,2.1695,2098.8,2098.7,8.87695]
[1617646807989,5.07645,2098.8,2098.7,8.87695]
[1617646809192,84.87985,2098.8,2098.7,5.97]
[1617646809591,84.87985,2098.8,2097.9,5.92]
[1617646809792,53.5179,2098.2,2097.4,2.571]
[1617646809991,56.0077,2098.2,2098.0,2.90695]
[1617646810190,56.0077,2098.2,2098.0,8.84695]
[1617646810390,56.0077,2098.2,2098.0,2.90695]
[1617646810793,56.0077,2098.2,2098.1,5.76]
[1617646812097,58.91465,2098.2,2098.1,5.76]
[1617646814298,5.39675,2098.2,2098.1,5.76]
[1617646814497,75.38775,2098.2,2098.1,5.76]
[1617646818501,75.38775,2098.2,2097.8,5.96]
[1617646818801,75.38775,2098.2,2098.1,5.94]
[1617646819204,75.38775,2098.2,2097.8,5.9]
[1617646819405,75.38775,2098.2,2098.1,5.87]
[1617646819804,75.38775,2098.2,2097.8,5.92]
[1617646820206,2.4898,2098.2,2098.1,5.94]
[1617646820405,0.02765831,2098.7,2097.8,5.79]
[1617646820608,2.146,2098.2,2097.8,5.79]
[1617646820809,59.0836,2097.7,2097.3,1.0]
[1617646821009,61.4894,2097.7,2097.3,1.0]
[1617646821207,61.4894,2097.7,2097.4,5.91]
[1617646821409,4.4058,2097.7,2097.4,5.91]
[1617646822211,2.90695,2097.5,2097.4,5.91]
[1617646824414,32.90695,2097.5,2097.4,5.91]
[1617646824612,34.90695,2097.5,2097.4,5.91]
[1617646827015,34.90695,2097.5,2097.3,1.0]
[1617646827215,55.7931,2097.4,2097.3,1.0]
[1617646827418,87.7931,2097.4,2097.3,1.0]
[1617646827615,87.7931,2097.4,2097.3,5.96]
[1617646828015,87.7931,2097.4,2095.4,5.76]
[1617646828216,87.7931,2097.4,2095.6,2.90695]
[1617646828415,87.7931,2097.4,2097.3,5.98]
[1617646828816,87.7931,2097.4,2095.7,5.78]
[1617646829016,87.7931,2097.4,2095.6,2.90695]
[1617646829017,87.7931,2097.4,2097.3,5.81]
[1617646829217,32.0,2097.4,2097.3,5.81]
[1617646829417,61.2998,2097.3,2095.7,5.74]
[1617646829617,30.0,2097.2,2095.6,2.90695]
[1617646829816,31.9679,2097.2,2095.6,2.90695]
[1617646830018,31.9679,2097.2,2095.8,5.99]
[1617646830217,2.90695,2095.9,2095.7,5.85]
[1617646830416,2.90695,2095.9,2095.6,2.90695]
[1617646830616,57.6912,2095.7,2095.6,2.90695]
[1617646831017,57.6912,2095.7,2095.6,8.83695]
[1617646832019,1.9679,2097.2,2095.6,8.83695]
[1617646832220,71.3157,2097.1,2096.6,2.90695]
[1617646832621,71.3157,2097.1,2096.7,6.0]
[1617646833021,71.3157,2097.1,2096.5,5.83]
[1617646833220,2.558,2098.4,2096.5,5.83]
[1617646833420,105.5366,2097.5,2096.8,5.96]
[1617646833620,105.5366,2097.5,2096.5,5.9]
[1617646834022,105.5366,2097.5,2096.9,5.83]
[1617646834222,2.90695,2097.0,2096.5,5.94]
[1617646834621,2.90695,2097.0,2096.9,5.95]
[1617646835024,2.90695,2097.0,2096.5,5.89]
[1617646835226,2.90695,2097.0,2096.9,5.73]
[1617646835625,2.90695,2097.0,2096.3,2.90695]
[1617646835626,2.90695,2097.0,2096.6,5.72]
[1617646835828,2.90695,2097.0,2096.4,5.93]
[1617646836027,2.90695,2097.0,2096.9,5.87]
[1617646836227,2.90695,2097.0,2096.7,6.0]
[1617646836426,2.90695,2097.0,2096.4,5.82]
[1617646836628,2.90695,2097.0,2096.9,5.83]
[1617646836827,2.90695,2097.0,2096.4,5.83]
[1617646837027,69.0273,2096.6,2096.4,5.83]
[1617646837229,2.7837,2096.6,2094.9,13.0446]
[1617646837428,2.7837,2096.6,2096.5,5.82]
[1617646837830,2.7837,2096.6,2095.5,0.25]
[1617646838028,2.7837,2096.6,2096.5,5.67]
[1617646838228,32.7837,2096.6,2096.5,5.67]
[1617646838430,35.69065,2096.6,2095.8,5.86]
[1617646838628,65.6223,2096.5,2095.6,2.90695]
[1617646838829,65.6223,2096.5,2095.7,0.07]
[1617646840433,2.90695,2095.8,2095.7,0.07]
[1617646840633,5.29895,2095.8,2095.7,0.07]
[1617646840831,5.29895,2095.8,2095.0,5.77]
[1617646841232,5.29895,2095.8,2095.7,5.78]
[1617646841432,5.29895,2095.8,2095.1,5.82]
[1617646841633,64.8168,2095.2,2095.1,5.82]
[1617646841834,64.8168,2095.2,2094.3,15.7866]
[1617646842032,64.8168,2095.2,2095.1,5.82]
[1617646842233,2.90695,2095.8,2095.1,5.82]
[1617646842432,75.8351,2096.2,2095.6,2.90695]
[1617646842832,75.8351,2096.2,2095.7,5.98]
[1617646844133,0.9505,2096.7,2095.7,5.98]
[1617646844339,2.90695,2095.8,2095.7,5.98]
[1617646844540,68.3356,2096.8,2095.7,5.98]
[1617646845141,2.0,2097.4,2095.7,5.98]
[1617646845142,32.0,2097.4,2095.7,5.98]
[1617646845344,78.1095,2096.4,2095.7,5.98]
[1617646846343,78.1095,2096.4,2096.0,2.90695]
[1617646846642,78.1095,2096.4,2096.1,5.87]
[1617646847043,30.0,2097.4,2096.1,5.87]
[1617646847242,58.5348,2097.3,2096.1,5.87]
[1617646848444,58.5348,2097.3,2096.6,2.90695]
[1617646848846,58.5348,2097.3,2096.7,5.79]
[1617646849845,88.5348,2097.3,2096.7,5.79]
[1617646850049,89.4929,2097.3,2096.7,5.79]
[1617646850445,2.90695,2096.8,2096.0,2.90695]
[1617646850647,35.23935,2096.8,2095.9,5.77]
[1617646850845,35.23935,2096.8,2095.3,2.0]
[1617646851046,65.7898,2096.2,2096.0,5.72]
[1617646851246,68.0515,2096.2,2096.0,5.72]
[1617646851446,68.0515,2096.2,2095.9,5.73]
[1617646851647,68.0515,2096.2,2096.1,5.87]
[1617646852047,68.0515,2096.2,2096.0,5.61]
[1617646852247,68.0515,2096.2,2096.1,5.83]
[1617646852447,70.95845,2096.2,2096.1,5.83]
[1617646852647,70.95845,2096.2,2094.9,2.0]
[1617646852848,70.95845,2096.2,2096.1,5.87]
[1617646853249,70.95845,2096.2,2095.1,1.99]
[1617646853447,70.95845,2096.2,2095.3,5.62]
[1617646853647,70.95845,2096.2,2096.1,5.98]
[1617646853847,70.95845,2096.2,2095.2,1.95]
[1617646854047,70.95845,2096.2,2095.4,5.97]
[1617646854247,70.95845,2096.2,2096.1,5.9]
[1617646854447,70.95845,2096.2,2095.4,2.90695]
[1617646854647,70.95845,2096.2,2095.5,5.63]
[1617646854848,70.95845,2096.2,2096.1,0.05]
[1617646855047,70.95845,2096.2,2095.4,2.90695]
[1617646855247,70.95845,2096.2,2095.6,5.99]
[1617646855447,70.95845,2096.2,2095.5,5.97]
[1617646855849,70.95845,2096.2,2095.7,5.72]
[1617646856249,70.95845,2096.2,2095.5,5.98]
[1617646856448,68.0515,2096.2,2095.8,5.79]
[1617646856848,68.0515,2096.2,2095.7,2.90695]
[1617646857049,68.0515,2096.2,2095.8,5.86]
[1617646858551,2.90695,2095.9,2095.8,5.86]
[1617646859752,30.0,2097.4,2095.8,5.86]
[1617646859951,54.3493,2097.2,2095.8,7.6281]
[1617646860553,54.3493,2097.2,2096.2,2.90695]
[1617646860750,54.3493,2097.2,2096.3,6.01]
[1617646860751,55.3099,2097.2,2096.3,6.01]
[1617646860955,54.3493,2097.2,2096.3,8.8045]
[1617646861852,84.3493,2097.2,2096.3,6.01]
[1617646862253,2.0,2097.1,2096.3,6.01]
[1617646862452,2.0,2097.1,2095.4,54.2712]
[1617646862453,2.90695,2096.4,2095.7,2.90695]
[1617646862653,4.61975,2096.4,2095.7,2.90695]
[1617646862854,4.61975,2096.4,2095.8,2.44]
[1617646863054,66.16895,2096.4,2095.8,2.44]
[1617646864155,4.61975,2096.4,2095.8,2.44]
[1617646864557,2.90695,2095.9,2095.8,2.44]
[1617646865958,72.36885,2095.9,2095.8,2.44]
[1617646868267,2.90695,2095.9,2095.8,2.44]
[1617646868468,2.90695,2095.9,2095.8,57.7892]
[1617646869670,61.6923,2097.5,2095.8,57.7892]
[1617646869871,61.6923,2097.5,2095.8,59.8184]
[1617646870472,61.6923,2097.5,2096.4,2.90695]
[1617646870870,61.6923,2097.5,2096.5,5.81]
[1617646871871,30.0,2098.4,2096.6,2.0]
[1617646872070,69.4518,2098.2,2096.6,66.4577]
[1617646872271,69.4518,2098.2,2096.7,5.98]
[1617646872473,69.4518,2098.2,2097.3,2.90695]
[1617646872873,69.4518,2098.2,2097.4,5.83]
[1617646873875,30.0,2098.9,2097.4,7.83]
[1617646874072,30.0,2098.9,2097.5,76.1214]
[1617646874472,30.0,2098.9,2097.8,2.90695]
[1617646874672,30.0,2098.9,2097.8,4.72845]
[1617646874973,30.0,2098.9,2097.9,5.89]
[1617646875173,61.6278,2098.3,2097.9,5.89]
[1617646875373,61.6278,2098.3,2097.6,5.71]
[1617646875774,61.6278,2098.3,2098.0,5.72]
[1617646875973,61.6278,2098.3,2097.7,5.94]
[1617646876377,61.6278,2098.3,2098.1,5.87]
[1617646876573,2.90695,2098.2,2097.5,2.90695]
[1617646876773,2.90695,2098.2,2097.7,6.0]
[1617646876973,2.90695,2098.2,2097.6,0.84]
[1617646877172,2.90695,2098.2,2097.7,2.2672]
[1617646877373,2.90695,2098.2,2097.8,5.83]
[1617646878576,2.90695,2097.9,2097.8,5.83]
[1617646880576,2.90695,2098.3,2097.8,8.73695]
[1617646880777,2.90695,2098.3,2097.9,2.0]
[1617646881178,2.90695,2098.3,2098.0,5.91]
[1617646882377,2.90695,2098.3,2098.0,7.91]
[1617646882578,2.90695,2098.3,2098.2,2.90695]
[1617646882778,2.90695,2098.3,2098.2,5.52465]
[1617646882978,2.90695,2098.3,2098.2,11.52465]
[1617646884183,2.90695,2098.3,2098.2,12.46825]
[1617646884784,2.90695,2098.3,2098.2,11.52465]
[1617646888587,2.90695,2098.6,2098.2,13.52465]